{"text_format":"1","workbook":"xlsx","n_sheets":9,"sheets":["Hinweis Blattschutz","-","GuV Dateneingabe","Bilanz Dateneingabe","--> ","GuV Monitor","Bilanz Monitor","-->","Erläuterung Kennzahlen"],"not_rendered":{"charts":0,"images":1,"macros":1,"external_links":0,"defined_names":4,"comments":0,"pivot_tables":0},"unopened":[],"bounds":{"document_bytes":16777216,"sheet_cells":100000,"rows_first":2000,"rows_last":500,"rows_between":2000,"halvings":0,"cell_chars":16384,"cell_head_chars":4096},"cells_cut":0,"cells_raw":0,"read":"whole","date_system":"1900"}

{"sheet":"Hinweis Blattschutz","index":0,"n_rows":14,"n_cols":1,"rows_kept":14,"cut":false,"hidden":false,"merged":[]}
[]
[]
[]
[]
["Hinweis: Einige Tabellenblätter sind mit Blattschutz versehen, das Passwort lautet: IHK102020"]
[]
[]
[]
["Dieses Excel-Sheet dient als erste Orientierungshilfe und erhebt keinen Anspruch auf Vollständigkeit."]
["Trotz sorgfältiger Recherchen bei der Erstellung dieses Excel-Sheets kann eine Haftung für den Inhalt"]
["nicht übernommen werden. Die in diesem Excel-Sheet dargestellten Erläuterungen erfolgen "]
["vorbehaltlich etwaiger Änderungen durch anstehende verordnungsrechtliche oder gesetzliche"]
["Änderungen. Empfehlung: Holen Sie sich Unterstützung durch qualifizierte Berater, z. B. Steuerberater."]
["Wir danken der IHK München und Oberbayern für die Bereitstellung dieses Kennzahlentools."]

{"sheet":"-","index":1,"n_rows":0,"n_cols":0,"rows_kept":0,"cut":false,"hidden":false,"merged":[]}

{"sheet":"GuV Dateneingabe","index":2,"n_rows":87,"n_cols":9,"rows_kept":87,"cut":false,"hidden":false,"merged":[]}
[]
[]
[]
[null,null,"IST","IST","PLAN","PLAN"]
[null,"Gewinn- und Verlustrechnung",2019,2020,2021,2022,null,"Hinweise zur Eingabe der Daten:"]
[null,null,"TEUR","TEUR","TEUR","TEUR"]
[null,"Umsatzerlöse",null,null,null,null,null,"Allgemeine Erläuterung:"]
[null,"BVÄ fertige & unfertige Erzeugnisse",null,null,null,null,null,"Diese Kennzahlenanalyse soll Unternehmen helfen, die finanzwirtschaftliche Leistungsfähigkeit darzustellen. Die Analyse basiert auf Ist-Daten des Jahresabschlusses. "]
[null,"Andere aktivierte Eigenleistungen",null,null,null,null,null,"Vorrangig werden die Gewinn- und Verlustrechnung sowie die Bilanz betrachtet. Mit der Eingabe der IST Zahlen des Unternehmens in die vorgefertigten Tabellenblätter"]
[null,"Sonstige betriebliche Erträge",null,null,null,null,null,"werden guV- sowie bilanzrelevante Kennzahlen ermittelt die als Grundlage für zum Beispiel ein Bankgespräch oder eine "]
[null,"Sonstiges",null,null,null,null,null,"weiterführende Beratung durch Spezialisten dienen können. Die Kennzahlenanalyse richtet sich an Geschäftsführer sowie Mitarbeiter von"]
[null,"= Gesamtleistung",{"$f":"SUM(C7:C11)","v":0},{"$f":"SUM(D7:D11)","v":0},0,0,null,"Finanz- und Rechnungswesenabteilungen sowie dem Controlling im Unternehmen."]
[null,"Materialaufwand (automtische Summe)",{"$f":"IF(C14=0,SUM(C15:C18),C14)+C18","v":0},{"$f":"IF(D14=0,SUM(D15:D18),D14)+D18","v":0},0,0]
[null,"Materialaufwand (Eingabe Gesamtwert)"]
[null,"Aufwand für RHB & für bezogene Waren"]
[null,"Aufwand für bezogene Leistungen"]
[null,"BVÄ Roh-, Hilfs- & Betriebsstoffen"]
[null,"Sonstiges",null,null,null,null,null,"Spezielle Erläuterung zur Dateneingabe:"]
[null,"= Rohertrag",{"$f":"C12-C13","v":0},0,0,0,null,null,": Diese Zellen sind Eingabezellen, nur hier können Sie die Daten eingeben"]
[null,"Personalaufwand (automatische Summe)",{"$f":"IF(C21=0,SUM(C22:C24),C21)+C24","v":0},{"$f":"IF(D21=0,SUM(D22:D24),D21)+D24","v":0},0,0,null,null,": Diese Zellen stellen relevante Betriebswirtschaftliche Ergebnisse dar, die automatisch berechnet werden."]
[null,"Personalaufwand (Eingabe Gesamtwert)",null,null,null,null,null,null,": Diese Zellen stellen eine automatisch verformelte Summe der Einzelpositionen dar."]
[null,"Löhne & Gehälter"]
[null,"Soziale Abgaben & Aufwendungen für Altersversorgung",null,null,null,null,null,"Die Felder mit den folgenden Farben"]
[null,"Sonstiges"]
[null,"= Deckungsbeitrag",{"$f":"C19-C20","v":0},0,0,0,null,"Dateneingabe:"]
[null,"Sonstige betr. Aufwendungen (automatische Summe)",{"$f":"IF(C27=0,C28+C34+C46,C27)","v":0},{"$f":"IF(D27=0,D28+D34+D46,D27)","v":0},{"$f":"IF(E27=0,E28+E34+E46,E27)","v":0},{"$f":"IF(F27=0,F28+F34+F46,F27)","v":0},null,"1. Als Eingabebasis dienen die letzten, testierten Jahresabschlüsse oder unterjährige Daten zur Zwischenauswertung und Planung"]
[null,"Sonstige betriebliche Aufwendungen (Eingabe Gesamtwert)",null,null,null,null,null,"2. Eingabe der GuV Daten in die dafür vorgesehenen Eingabezellen (siehe oben)"]
[null,"Betriebskosten (automatische Summe)",{"$f":"IF(C29=0,SUM(C30:C33),C29)+C33","v":0},{"$f":"IF(D29=0,SUM(D30:D33),D29)+D33","v":0},0,0,null,"3. Eingabe der Bilanz Daten in die dafür vorgesehenen Eingabezellen im Tabellenblatt \"Bilanz Dateneingabe\""]
[null,"Betriebskosten (Eingabe Gesamtwert)"]
[null,"Mieten & Pachten"]
[null,"Energiekosten"]
[null,"Instandhaltungskosten"]
[null,"Sonstiges",null,null,null,null,null,"Datenauswertung:"]
[null,"Verwaltungskosten (automatischeSumme)",{"$f":"IF(C35=0,SUM(C36:C45),C35)+C45","v":0},{"$f":"IF(D35=0,SUM(D36:D45),D35)+D45","v":0},0,0,null,"1. Im Tabellenblatt \"GuV Monitor\" wird eine komprimierte Gewinn- und Verlustrechnung auf Basis der eingebenen Daten dargestellt mit den wichtigsten Kennzahlen"]
[null,"Verwaltungskosten (Eingabe Gesamtwert)",null,null,null,null,null,"2. Im Tabellenblatt \"Bilanz Monitor\" wird eine komprimierte Bilanz auf Basis der eingebenen Daten dargestellt mit den wichtigsten Kennzahlen"]
[null,"Versicherungen & Beiträge"]
[null,"EDV-Kosten"]
[null,"Fortbildungskosten"]
[null,"Porto, Telefon"]
[null,"Büromaterial"]
[null,"Fachliteratur"]
[null,"Rechts- & Beratungskosten"]
[null,"Nebenkosten des Geldverkehrs"]
[null,"Sonstige Kosten"]
[null,"Sonstiges",null,null,null,null,null,"3. Mit einem Klick auf die Kennzahlbezeichnung werden Sie automatisch in das Tabellenblatt \"Erläuterung Kennzahlen\" geleitet."]
[null,"Vertriebskosten (automatische Summe)",{"$f":"IF(C47=0,SUM(C48:C54),C47)+C54","v":0},{"$f":"IF(D47=0,SUM(D48:D54),D47)+D54","v":0},0,0,null,"4. Im Tabellenblatt \"Erläuterung Kennzahlen\" werden die einzelnen Kennzahlen erläutert. "]
[null,"Vertriebskosten (Eingabe Gesamtwert)"]
[null,"Frachtkosten"]
[null,"Verpackungskosten"]
[null,"Werbekosten"]
[null,"Reisekosten"]
[null,"Bewirtung & Geschenke"]
[null,"Messekosten"]
[null,"Sonstiges",null,null,null,null,null,"Wichtige Links und Informationen:"]
[null,"= EBITDA",{"$f":"C25-C26","v":0},0,0,0]
[null,"Abschreibungen (automatische Summe)",{"$f":"IF(C57=0,SUM(C58:C60),C57)+C60","v":0},{"$f":"IF(D57=0,SUM(D58:D60),D57)+D60","v":0},0,0]
[null,"Abschreibungen (Eingabe Gesamtwert)"]
[null,"auf Vermögensgegenstände des AV"]
[null,"auf Vermögensgegenstände des UV"]
[null,"Sonstiges"]
[null,"= EBIT (Betriebsergebnis)",{"$f":"C55-C56","v":0},0,0,0]
[null,"Finanzergebnis (automatische Summe)",{"$f":"IF(C63=0,SUM(C64:C70)-SUM(C71:C76),C63)+C76","v":0},{"$f":"IF(D63=0,SUM(D64:D70)-SUM(D71:D76),D63)+D76","v":0},0,0]
[null,"Finanzergebnis (Eingabe Gesamtwert)"]
[null,"Erträge aus Beteiligungen"]
[null,"Erträge aus anderen Wertpapieren und Ausleihungen"]
[null,"sonstige Zinsen & ähnliche Erträge"]
[null,"Erträge aus EAV"]
[null,"Kursgewinne"]
[null,"Zuschreibungen auf Finanzanlagen"]
[null,"Sonstiges"]
[null,"Aufwendungen aus Beteiligungen"]
[null,"sonstige Zinsen & ähnliche Aufwendungen"]
[null,"Aufwendungen aus EAV"]
[null,"Kursverluste"]
[null,"Abschreibungen auf Finanzanlagen"]
[null,"Sonstiges"]
[null,"Ergebnis der gewöhnlichen Geschäftstätigkeit",{"$f":"SUM(C61:C62)","v":0},0,0,0]
[null,"= A.O. Ergebnis",{"$f":"IF(C79=0,C80-C81,C79)","v":0},0,0,0]
[null,"A.O. Ergebnis (Eingabe Gesamtwert)"]
[null,"A.O. Erträge"]
[null,"A.O. Aufwendungen"]
[null,"= EBT",{"$f":"SUM(C77,C78)","v":0},0,0,0]
[null,"Steuern vom Einkommen & Ertrag"]
[null,"sonstige Steuern"]
[null,null,null,null,null,null,null,"Disclaimer:"]
[null,"Sonstiges",null,null,null,null,null,"Die Informationen und Auskünfte der IHK Düsseldorf sind ein Service für ihre Mitgliedsunternehmen. Sie enthalten nur erste Hinweise und erheben daher keinen Anspruch auf Vollständigkeit. "]
[null,"= Jahresüberschuss / Jahresfehlbetrag",{"$f":"C82-SUM(C83:C86)","v":0},0,0,0,null,"Obwohl sie mit größtmöglicher Sorgfalt erstellt wurden, kann eine Haftung für ihre inhaltliche Richtigkeit nicht übernommen werden. Sie können eine Beratung im Einzelfall (z.B. durch einen Rechtsanwalt, Steuerberater, Unternehmensberater etc.) nicht ersetzen. "]

{"sheet":"Bilanz Dateneingabe","index":3,"n_rows":104,"n_cols":11,"rows_kept":104,"cut":false,"hidden":false,"merged":[]}
[]
[]
[null,null,"IST","IST","PLAN","PLAN"]
[null,"Bilanz",2019,2020,2021,2022]
[null,null,"TEUR","TEUR","TEUR","TEUR"]
[null,"Anlagevermögen (automatische Summe)",{"$f":"IF(C7=0,SUM(C8,C14,C21),C7)","v":0},{"$f":"IF(D7=0,SUM(D8,D14,D21),D7)","v":0},0,0]
[null,"Anlagevermögen (Eingabe Gesamtwert d)",null,null,null,null,null,null,null,"Spezielle Erläuterung zur Dateneingabe:"]
[null,"Immaterielle Vermögensgegenstände (automatische Summe)",{"$f":"IF(C9=0,SUM(C10:C13),C9)+C13","v":0},{"$f":"IF(D9=0,SUM(D10:D13),D9)+D13","v":0},0,0,null,null,null,null,": Diese Zellen sind Eingabezellen, nur hier können Sie die Daten eingeben"]
[null,"Immaterielle Vermögensgegenstände (Gesamteingabe)",null,null,null,null,null,null,null,null,": Diese Zellen stellen relevante Betriebswirtschaftliche Ergebnisse dar, die automatisch berechnet werden."]
[null,"Konzessionen, gewerbliche Schutzrechte & ähnliche Rechte"]
[null,"Geschäfts- oder Firmenwert"]
[null,"Geleistete Anzahlungen AV"]
[null,"Sonstige immaterielle Vermögensgegenstände",null,null,null,null,null,null,null,null,": Diese Zellen stellen eine automatisch verformelte Summe der Einzelpositionen dar."]
[null,"Sachanlagen (automatische Summe)",{"$f":"IF(C15=0,SUM(C16:C20),C15)+C20","v":0},{"$f":"IF(D15=0,SUM(D16:D20),D15)+D20","v":0},0,0]
[null,"Sachanlagen (Eingabe Gesamtwert)"]
[null,"Grundstücke, grundstücksgleiche Rechte & Bauten"]
[null,"Technische Anlagen & Maschinen"]
[null,"Andere Anlagen,  Betriebs- & Geschäftsausstattung"]
[null,"Geleistete Anzahlungen & Anlagen im Bau"]
[null,"Sonstige Sachanlagen"]
[null,"Finanzanlagen (automatische Summe)",{"$f":"IF(C22=0,SUM(C23:C29),C22)+C29","v":0},{"$f":"IF(D22=0,SUM(D23:D29),D22)+D29","v":0},0,0]
[null,"Finanzanlagen (Eingabe Gesamtwert)"]
[null,"Anteile an verbundenen Unternehmen AV"]
[null,"Ausleihungen an verbundene Unternehmen"]
[null,"Beteiligungen"]
[null,"Ausleihungen an Unternehmen, mit Beteiligungsverhältnis"]
[null,"Wertpapiere des Anlagevermögens"]
[null,"Sonstige Ausleihungen"]
[null,"Sonstige Finanzanlagen"]
[null,"Umlaufvermögen (automatische Summe)",{"$f":"IF(C31=0,SUM(C32,C39,C47,C53),C31)","v":0},0,0,0]
[null,"Umlaufvermögen (Gesamteingabe)"]
[null,"Vorräte (automatische Summe)",{"$f":"IF(C33=0,SUM(C34:C38),C33)+C38","v":0},{"$f":"IF(D33=0,SUM(D34:D38),D33)+D38","v":0},0,0]
[null,"Vorräte (Eingabe Gesamtwert)"]
[null,"Roh-, Hilfs- & Betriebsstoffe"]
[null,"Unfertige Erzeugnisse, unfertige Leistungen"]
[null,"Fertige Erzeugnisse & Waren"]
[null,"Geleistete Anzahlungen UV"]
[null,"Sonstige Vorräte"]
[null,"Forderungen & sonstige Vermögensgegenstände (automatische Summe)",{"$f":"IF(C40=0,SUM(C41:C46),C40)+C46","v":0},{"$f":"IF(D40=0,SUM(D41:D46),D40)+D46","v":0},0,0]
[null,"Forderungen & sonstige Vermögensgegenstände (Eingabe Gesamtwert)"]
[null,"Forderungen aus Lieferung & Leistung"]
[null,"Forderungen gegenüber verbundenen Unternehmen"]
[null,"Forderungen gegen Unternehmen, mit Beteiligungsverhältnis"]
[null,"Forderungen gegenüber Gesellschaftern"]
[null,"Sonstige Vermögensgegenstände"]
[null,"Sonstige Forderungen & sonstige Vermögensgegenstände"]
[null,"Wertpapiere (automatische Summe)",{"$f":"IF(C48=0,SUM(C49:C52),C48)+C52","v":0},{"$f":"IF(D48=0,SUM(D49:D52),D48)+D52","v":0},0,0]
[null,"Wertpapiere (Eingabe Gesamtwert)"]
[null,"Anteile an verbundenen Unternehmen UV"]
[null,"Eigene Anteile"]
[null,"Sonstige Wertpapiere"]
[null,"Sonstiges"]
[null,"Kassenbestand/Guthaben bei Kreditinstituten (automatische Summe)",{"$f":"IF(C54=0,SUM(C55:C57),C54)+C57","v":0},{"$f":"IF(D54=0,SUM(D55:D57),D54)+D57","v":0},0,0]
[null,"Kassenbestand/Guthaben bei Kreditinstituten (Eingabe Gesamtwert)"]
[null,"Kassenbestand"]
[null,"Guthaben bei Kreditinstituten"]
[null,"Sonstiges"]
[null,"Aktiver Rechnungsabgrenzungsposten"]
[null,"Aktive latente Steuern"]
[null,"Nicht durch Eigenkapital gedeckter Verlustanteil"]
[null,"Sonstiges"]
[null,"AKTIVA (automatische Summe)",{"$f":"C61+C60+C59+C58+C30+C6","v":0},{"$f":"SUM(D6,D30,D58,D59,D60,D61)","v":0},0,0]
[]
[]
[null,"Eigenkapital (automatische Summe)",{"$f":"IF(C66=0,SUM(C67,C76,C77,C78),C66)","v":0},{"$f":"IF(D66=0,SUM(D67,D76,D77,D78),D66)","v":0},{"$f":"IF(E66=0,SUM(E67,E76,E77,E78),E66)","v":0},{"$f":"IF(F66=0,SUM(F67,F76,F77,F78),F66)","v":0}]
[null,"Eigenkapital (Eingabe Gesamtwert)"]
[null,"Gezeichnetes Kapital"]
[null,"Gewinnrücklagen (automatische Summe)",{"$f":"SUM(C76:C78)","v":0},{"$f":"SUM(D76:D78)","v":0},{"$f":"SUM(E76:E78)","v":0},{"$f":"SUM(F76:F78)","v":0}]
[null,"Gewinnrücklagen (Eingabe Gesamtwert)"]
[null,"Kapitalrücklage"]
[null,"Gesetzliche Rücklage"]
[null,"Rücklage für eigene Anteile"]
[null,"Satzungsgemäße Rücklagen"]
[null,"Andere Gewinnrücklagen"]
[null,"Sonstige Gewinnrücklagen"]
[null,"Gewinnvortrag/Verlustvortrag"]
[null,"Jahresüberschuss/Jahresfehlbetrag"]
[null,"Sonstiges"]
[null,"Rückstellungen (automatische Summe)",{"$f":"IF(C80=0,SUM(C81:C84),C80)+C84","v":0},{"$f":"IF(D80=0,SUM(D81:D84),D80)+D84","v":0},0,0]
[null,"Rückstellungen (Eingabe Gesamtwert)"]
[null,"Rückstellungen für Pensionen & ähnliche Verpflichtungen"]
[null,"Steuerrückstellungen"]
[null,"Sonstige Rückstellungen"]
[null,"Sonstiges"]
[null,"Verbindlichkeiten (automatische Summe)",{"$f":"IF(C86=0,SUM(C87:C98),C86)","v":0},0,0,0]
[null,"Verbindlichkeiten (Eingabe Gesamtwert)"]
[null,"Genussrechtskapital (Mezzanine)"]
[null,"Gesellschafterdarlehen"]
[null,"Anleihen"]
[null,"Verbindlichkeiten ggü. Kreditinstitut (KI)"]
[null,"Erhaltene Anzahlungen auf Bestellungen"]
[null,"Verbindlichkeiten aus Lieferung und Leistung"]
[null,"Verbindlichkeiten aus der Annahme gezogener Wechsel"]
[null,"Verbindlichkeiten ggü.verbundenen Unternehmen"]
[null,"Verbindlichkeiten ggü. Untern., mit Beteiligungsverhältnis"]
[null,"Sonstige Verbindlichkeiten"]
[null,"Umsatzsteuer-Verbindl."]
[null,"Sonstiges"]
[null,"Passiver Rechnungsabgrenzungsposten "]
[null,"Passive latente Steuern "]
[null,"Sonstiges "]
[null,"PASSIVA (automatische Summe)",{"$f":"SUM(C65,C79,C85,C99,C100,C101)","v":0},{"$f":"SUM(D65,D79,D85,D99,D100,D101)","v":0},{"$f":"SUM(E65,E79,E85,E99,E100,E101)","v":0},{"$f":"SUM(F65,F79,F85,F99,F100,F101)","v":0}]
[]
[null,"Check Bilanzsumme",{"$f":"C102-C62","v":0},{"$f":"D102-D62","v":0},0,0]

{"sheet":"--> ","index":4,"n_rows":0,"n_cols":0,"rows_kept":0,"cut":false,"hidden":false,"merged":[]}

{"sheet":"GuV Monitor","index":5,"n_rows":31,"n_cols":19,"rows_kept":31,"cut":false,"hidden":false,"merged":[[1,4,1,5],[1,6,1,7],[1,10,1,11],[28,2,28,3],[29,2,29,3],[7,2,7,3],[9,2,9,3],[30,2,30,3],[1,2,2,3],[20,2,20,3],[21,2,21,3],[24,2,24,3],[25,2,25,3],[12,2,12,3],[13,2,13,3],[16,2,16,3],[17,2,17,3],[18,2,18,3],[19,2,19,3],[3,2,3,3],[4,2,4,3],[5,2,5,3],[6,2,6,3]]}
[]
[null,null,"Gewinn- und Verlustrechnung",null,{"$f":"'GuV Dateneingabe'!C5","v":2019},null,{"$f":"'GuV Dateneingabe'!D5","v":2020},null,{"$f":"'GuV Dateneingabe'!E5","v":2021},null,{"$f":"IF('GuV Dateneingabe'!F5=\"???\",\"Jahr\",'GuV Dateneingabe'!F5)","v":2022},null,null,null,null,2019,2020,2021,2022]
[null,null,null,null,"TEUR","%","TEUR","%","TEUR","%","TEUR","%",null,null,"GuV - Kennzahlen"]
[null,null,{"$f":"'GuV Dateneingabe'!B7","v":"Umsatzerlöse"},null,{"$f":"'GuV Dateneingabe'!C7","v":0},{"$f":"E4/$E$9*100","v":{"$error":"#DIV/0!"}},{"$f":"'GuV Dateneingabe'!D7","v":0},{"$f":"G4/$G$9*100","v":{"$error":"#DIV/0!"}},{"$f":"'GuV Dateneingabe'!E7","v":0},{"$f":"I4/$I$9*100","v":{"$error":"#DIV/0!"}},{"$f":"'GuV Dateneingabe'!F7","v":0},{"$f":"K4/$K$9*100","v":{"$error":"#DIV/0!"}}]
[null,null,{"$f":"'GuV Dateneingabe'!B8","v":"BVÄ fertige & unfertige Erzeugnisse"},null,{"$f":"'GuV Dateneingabe'!C8","v":0},{"$f":"E5/$E$9*100","v":{"$error":"#DIV/0!"}},{"$f":"'GuV Dateneingabe'!D8","v":0},{"$f":"G5/$G$9*100","v":{"$error":"#DIV/0!"}},{"$f":"'GuV Dateneingabe'!E8","v":0},{"$f":"I5/$I$9*100","v":{"$error":"#DIV/0!"}},{"$f":"'GuV Dateneingabe'!F8","v":0},{"$f":"K5/$K$9*100","v":{"$error":"#DIV/0!"}},null,null,"Umsatzrendite",{"$f":"(E29*100)/E4/100","v":{"$error":"#DIV/0!"}},{"$f":"(G29*100)/G4/100","v":{"$error":"#DIV/0!"}},{"$f":"(I29*100)/I4/100","v":{"$error":"#DIV/0!"}},{"$f":"(K29*100)/K4/100","v":{"$error":"#DIV/0!"}}]
[null,null,{"$f":"'GuV Dateneingabe'!B9","v":"Andere aktivierte Eigenleistungen"},null,{"$f":"'GuV Dateneingabe'!C9","v":0},{"$f":"E6/$E$9*100","v":{"$error":"#DIV/0!"}},{"$f":"'GuV Dateneingabe'!D9","v":0},{"$error":"#DIV/0!"},{"$f":"'GuV Dateneingabe'!E9","v":0},{"$error":"#DIV/0!"},{"$f":"'GuV Dateneingabe'!F9","v":0},{"$error":"#DIV/0!"}]
[null,null,{"$f":"'GuV Dateneingabe'!B10","v":"Sonstige betriebliche Erträge"},null,{"$f":"'GuV Dateneingabe'!C10","v":0},{"$error":"#DIV/0!"},{"$f":"'GuV Dateneingabe'!D10","v":0},{"$error":"#DIV/0!"},{"$f":"'GuV Dateneingabe'!E10","v":0},{"$error":"#DIV/0!"},{"$f":"'GuV Dateneingabe'!F10","v":0},{"$error":"#DIV/0!"},null,null,"Gesamtleistung in T€",{"$f":"E9","v":0},{"$f":"G9","v":0},{"$f":"I9","v":0},{"$f":"K9","v":0}]
[null,null,{"$f":"'GuV Dateneingabe'!B11","v":"Sonstiges"},null,{"$f":"'GuV Dateneingabe'!C11","v":0},{"$error":"#DIV/0!"},{"$f":"'GuV Dateneingabe'!D11","v":0},{"$error":"#DIV/0!"},{"$f":"'GuV Dateneingabe'!E11","v":0},{"$error":"#DIV/0!"},{"$f":"'GuV Dateneingabe'!F11","v":0},{"$error":"#DIV/0!"}]
[null,null,{"$f":"'GuV Dateneingabe'!B12","v":"= Gesamtleistung"},null,{"$f":"SUM(E4:E8)","v":0},{"$error":"#DIV/0!"},{"$f":"SUM(G4:G8)","v":0},{"$error":"#DIV/0!"},{"$f":"SUM(I4:I8)","v":0},{"$error":"#DIV/0!"},{"$f":"SUM(K4:K8)","v":0},{"$error":"#DIV/0!"},null,null,"Materialquote",{"$f":"E10/E9","v":{"$error":"#DIV/0!"}},{"$f":"G10/G9","v":{"$error":"#DIV/0!"}},{"$f":"I10/I9","v":{"$error":"#DIV/0!"}},{"$f":"K10/K9","v":{"$error":"#DIV/0!"}}]
[null,null,{"$f":"'GuV Dateneingabe'!B13","v":"Materialaufwand (automtische Summe)"},null,{"$f":"IF(E11=0,'GuV Dateneingabe'!C13,SUM(E11:E12))","v":0},"d",{"$f":"IF(G11=0,'GuV Dateneingabe'!D13,SUM(G11:G12))","v":0},{"$error":"#DIV/0!"},{"$f":"IF(I11=0,'GuV Dateneingabe'!E13,SUM(I11:I12))","v":0},{"$error":"#DIV/0!"},{"$f":"IF(K11=0,'GuV Dateneingabe'!F13,SUM(K11:K12))","v":0},{"$error":"#DIV/0!"}]
[null,null,"a.",{"$f":"'GuV Dateneingabe'!B15","v":"Aufwand für RHB & für bezogene Waren"},{"$f":"SUM('GuV Dateneingabe'!C15,'GuV Dateneingabe'!C17,'GuV Dateneingabe'!C18)","v":0},{"$error":"#DIV/0!"},{"$f":"SUM('GuV Dateneingabe'!D15,'GuV Dateneingabe'!D17,'GuV Dateneingabe'!D18)","v":0},{"$error":"#DIV/0!"},{"$f":"SUM('GuV Dateneingabe'!E15,'GuV Dateneingabe'!E17,'GuV Dateneingabe'!E18)","v":0},{"$error":"#DIV/0!"},{"$f":"SUM('GuV Dateneingabe'!F15,'GuV Dateneingabe'!F17,'GuV Dateneingabe'!F18)","v":0},{"$error":"#DIV/0!"},null,null,"Personalintensität I",{"$f":"E14/E9","v":{"$error":"#DIV/0!"}},{"$f":"G14/G9","v":{"$error":"#DIV/0!"}},{"$f":"I14/I9","v":{"$error":"#DIV/0!"}},{"$f":"K14/K9","v":{"$error":"#DIV/0!"}}]
[null,null,"b.",{"$f":"'GuV Dateneingabe'!B16","v":"Aufwand für bezogene Leistungen"},{"$f":"'GuV Dateneingabe'!C16","v":0},{"$error":"#DIV/0!"},{"$f":"'GuV Dateneingabe'!D16","v":0},{"$error":"#DIV/0!"},{"$f":"'GuV Dateneingabe'!E16","v":0},{"$error":"#DIV/0!"},{"$f":"'GuV Dateneingabe'!F16","v":0},{"$error":"#DIV/0!"}]
[null,null,{"$f":"'GuV Dateneingabe'!B19","v":"= Rohertrag"},null,{"$f":"E9-E10","v":0},{"$error":"#DIV/0!"},{"$f":"G9-G10","v":0},{"$error":"#DIV/0!"},{"$f":"I9-I10","v":0},{"$error":"#DIV/0!"},{"$f":"K9-K10","v":0},{"$error":"#DIV/0!"},null,null,"EBITDA-Marge",{"$f":"(E19/E4)","v":{"$error":"#DIV/0!"}},{"$f":"(G19/G4)","v":{"$error":"#DIV/0!"}},{"$f":"(I19/I4)","v":{"$error":"#DIV/0!"}},{"$f":"(K19/K4)","v":{"$error":"#DIV/0!"}}]
[null,null,{"$f":"'GuV Dateneingabe'!B20","v":"Personalaufwand (automatische Summe)"},null,{"$f":"IF(SUM(E15:E16)=0,'GuV Dateneingabe'!C20,SUM(E15:E16))","v":0},{"$error":"#DIV/0!"},{"$f":"IF(SUM(G15:G16)=0,'GuV Dateneingabe'!D20,SUM(G15:G16))","v":0},{"$error":"#DIV/0!"},{"$f":"IF(SUM(I15:I16)=0,'GuV Dateneingabe'!E20,SUM(I15:I16))","v":0},{"$error":"#DIV/0!"},{"$f":"IF(SUM(K15:K16)=0,'GuV Dateneingabe'!F20,SUM(K15:K16))","v":0},{"$error":"#DIV/0!"}]
[null,null,"a.",{"$f":"'GuV Dateneingabe'!B22","v":"Löhne & Gehälter"},{"$f":"SUM('GuV Dateneingabe'!C22,'GuV Dateneingabe'!C24)","v":0},{"$error":"#DIV/0!"},{"$f":"SUM('GuV Dateneingabe'!D22,'GuV Dateneingabe'!D24)","v":0},{"$error":"#DIV/0!"},{"$f":"SUM('GuV Dateneingabe'!E22,'GuV Dateneingabe'!E24)","v":0},{"$error":"#DIV/0!"},{"$f":"SUM('GuV Dateneingabe'!F22,'GuV Dateneingabe'!F24)","v":0},{"$error":"#DIV/0!"},null,null,"EBT-Marge",{"$f":"E29/E4","v":{"$error":"#DIV/0!"}},{"$f":"G29/G4","v":{"$error":"#DIV/0!"}},{"$f":"I29/I4","v":{"$error":"#DIV/0!"}},{"$f":"K29/K4","v":{"$error":"#DIV/0!"}}]
[null,null,"b.",{"$f":"'GuV Dateneingabe'!B23","v":"Soziale Abgaben & Aufwendungen für Altersversorgung"},{"$f":"'GuV Dateneingabe'!C23","v":0},{"$error":"#DIV/0!"},{"$f":"'GuV Dateneingabe'!D23","v":0},{"$error":"#DIV/0!"},{"$f":"'GuV Dateneingabe'!E23","v":0},{"$error":"#DIV/0!"},{"$f":"'GuV Dateneingabe'!F23","v":0},{"$error":"#DIV/0!"}]
[null,null,{"$f":"'GuV Dateneingabe'!B25","v":"= Deckungsbeitrag"},null,{"$f":"E13-E14","v":0},{"$error":"#DIV/0!"},{"$f":"G13-G14","v":0},{"$error":"#DIV/0!"},{"$f":"I13-I14","v":0},{"$error":"#DIV/0!"},{"$f":"K13-K14","v":0},{"$error":"#DIV/0!"},null,null,{"$f":"O11","v":"Personalintensität I"},{"$f":"P11","v":{"$error":"#DIV/0!"}},{"$f":"Q11","v":{"$error":"#DIV/0!"}},{"$f":"R11","v":{"$error":"#DIV/0!"}},{"$f":"S11","v":{"$error":"#DIV/0!"}}]
[null,null,{"$f":"'GuV Dateneingabe'!B26","v":"Sonstige betr. Aufwendungen (automatische Summe)"},null,{"$f":"'GuV Dateneingabe'!C26","v":0},{"$error":"#DIV/0!"},{"$f":"'GuV Dateneingabe'!D26","v":0},{"$error":"#DIV/0!"},{"$f":"'GuV Dateneingabe'!E26","v":0},{"$error":"#DIV/0!"},{"$f":"'GuV Dateneingabe'!F26","v":0},{"$error":"#DIV/0!"}]
[null,null,{"$f":"'GuV Dateneingabe'!B55","v":"= EBITDA"},null,{"$f":"E17-E18","v":0},{"$error":"#DIV/0!"},{"$f":"G17-G18","v":0},{"$error":"#DIV/0!"},{"$f":"I17-I18","v":0},{"$error":"#DIV/0!"},{"$f":"K17-K18","v":0},{"$error":"#DIV/0!"},null,null,{"$f":"O13","v":"EBITDA-Marge"},{"$f":"P13","v":{"$error":"#DIV/0!"}},{"$f":"Q13","v":{"$error":"#DIV/0!"}},{"$f":"R13","v":{"$error":"#DIV/0!"}},{"$f":"S13","v":{"$error":"#DIV/0!"}}]
[null,null,{"$f":"'GuV Dateneingabe'!B56","v":"Abschreibungen (automatische Summe)"},null,{"$f":"'GuV Dateneingabe'!C56","v":0},{"$error":"#DIV/0!"},{"$f":"'GuV Dateneingabe'!D56","v":0},{"$error":"#DIV/0!"},{"$f":"'GuV Dateneingabe'!E56","v":0},{"$error":"#DIV/0!"},{"$f":"'GuV Dateneingabe'!F56","v":0},{"$error":"#DIV/0!"}]
[null,null,{"$f":"'GuV Dateneingabe'!B61","v":"= EBIT (Betriebsergebnis)"},null,{"$f":"E19-E20","v":0},{"$error":"#DIV/0!"},{"$f":"G19-G20","v":0},{"$error":"#DIV/0!"},{"$f":"I19-I20","v":0},{"$error":"#DIV/0!"},{"$f":"K19-K20","v":0},{"$error":"#DIV/0!"},null,null,{"$f":"O15","v":"EBT-Marge"},{"$f":"P15","v":{"$error":"#DIV/0!"}},{"$f":"Q15","v":{"$error":"#DIV/0!"}},{"$f":"R15","v":{"$error":"#DIV/0!"}},{"$f":"S15","v":{"$error":"#DIV/0!"}}]
[null,null,{"$f":"'GuV Dateneingabe'!B62","v":"Finanzergebnis (automatische Summe)"},null,{"$f":"IF(E23-E24=0,'GuV Dateneingabe'!C62,E23-E24)","v":0},{"$error":"#DIV/0!"},{"$f":"IF(G23-G24=0,'GuV Dateneingabe'!D62,G23-G24)","v":0},{"$error":"#DIV/0!"},{"$f":"IF(I23-I24=0,'GuV Dateneingabe'!E62,I23-I24)","v":0},{"$error":"#DIV/0!"},{"$f":"IF(K23-K24=0,'GuV Dateneingabe'!F62,K23-K24)","v":0},{"$error":"#DIV/0!"}]
[null,null,"a.",{"$f":"'GuV Dateneingabe'!B66","v":"sonstige Zinsen & ähnliche Erträge"},{"$f":"SUM('GuV Dateneingabe'!C64:C70)","v":0},{"$error":"#DIV/0!"},{"$f":"SUM('GuV Dateneingabe'!D64:D70)","v":0},{"$error":"#DIV/0!"},{"$f":"SUM('GuV Dateneingabe'!E64:E70)","v":0},{"$error":"#DIV/0!"},{"$f":"SUM('GuV Dateneingabe'!F64:F70)","v":0},{"$error":"#DIV/0!"}]
[null,null,"b.",{"$f":"'GuV Dateneingabe'!B72","v":"sonstige Zinsen & ähnliche Aufwendungen"},{"$f":"SUM('GuV Dateneingabe'!C71:C76)","v":0},{"$error":"#DIV/0!"},{"$f":"SUM('GuV Dateneingabe'!D71:D76)","v":0},{"$error":"#DIV/0!"},{"$f":"SUM('GuV Dateneingabe'!E71:E76)","v":0},{"$error":"#DIV/0!"},{"$f":"SUM('GuV Dateneingabe'!F71:F76)","v":0},{"$error":"#DIV/0!"}]
[null,null,{"$f":"'GuV Dateneingabe'!B77","v":"Ergebnis der gewöhnlichen Geschäftstätigkeit"},null,{"$f":"E21+E22","v":0},{"$error":"#DIV/0!"},{"$f":"G21+G22","v":0},{"$error":"#DIV/0!"},{"$f":"I21+I22","v":0},{"$error":"#DIV/0!"},{"$f":"K21+K22","v":0},{"$error":"#DIV/0!"}]
[null,null,{"$f":"'GuV Dateneingabe'!B78","v":"= A.O. Ergebnis"},null,{"$f":"IF(E27-E28=0,'GuV Dateneingabe'!C78,E27-E28)","v":0},{"$error":"#DIV/0!"},{"$f":"IF(G27-G28=0,'GuV Dateneingabe'!D78,G27-G28)","v":0},{"$error":"#DIV/0!"},{"$f":"IF(I27-I28=0,'GuV Dateneingabe'!E78,I27-I28)","v":0},{"$error":"#DIV/0!"},{"$f":"IF(K27-K28=0,'GuV Dateneingabe'!F78,K27-K28)","v":0},{"$error":"#DIV/0!"}]
[null,null,"a.",{"$f":"'GuV Dateneingabe'!B80","v":"A.O. Erträge"},{"$f":"'GuV Dateneingabe'!C80","v":0},{"$error":"#DIV/0!"},{"$f":"'GuV Dateneingabe'!D80","v":0},{"$error":"#DIV/0!"},{"$f":"'GuV Dateneingabe'!E80","v":0},{"$error":"#DIV/0!"},{"$f":"'GuV Dateneingabe'!F80","v":0},{"$error":"#DIV/0!"}]
[null,null,"b.",{"$f":"'GuV Dateneingabe'!B81","v":"A.O. Aufwendungen"},{"$f":"'GuV Dateneingabe'!C81","v":0},{"$error":"#DIV/0!"},{"$f":"'GuV Dateneingabe'!D81","v":0},{"$error":"#DIV/0!"},{"$f":"'GuV Dateneingabe'!E81","v":0},{"$error":"#DIV/0!"},{"$f":"'GuV Dateneingabe'!F81","v":0},{"$error":"#DIV/0!"}]
[null,null,{"$f":"'GuV Dateneingabe'!B82","v":"= EBT"},null,{"$f":"E25+E26","v":0},{"$error":"#DIV/0!"},{"$f":"G25+G26","v":0},{"$error":"#DIV/0!"},{"$f":"I25+I26","v":0},{"$error":"#DIV/0!"},{"$f":"K25+K26","v":0},{"$error":"#DIV/0!"}]
[null,null,{"$f":"'GuV Dateneingabe'!B83","v":"Steuern vom Einkommen & Ertrag"},null,{"$f":"SUM('GuV Dateneingabe'!C83:C86)","v":0},{"$error":"#DIV/0!"},{"$f":"SUM('GuV Dateneingabe'!D83:D86)","v":0},{"$error":"#DIV/0!"},{"$f":"SUM('GuV Dateneingabe'!E83:E86)","v":0},{"$error":"#DIV/0!"},{"$f":"SUM('GuV Dateneingabe'!F83:F86)","v":0},{"$error":"#DIV/0!"}]
[null,null,{"$f":"'GuV Dateneingabe'!B87","v":"= Jahresüberschuss / Jahresfehlbetrag"},null,{"$f":"E29-E30","v":0},{"$error":"#DIV/0!"},{"$f":"G29-G30","v":0},{"$error":"#DIV/0!"},{"$f":"I29-I30","v":0},{"$error":"#DIV/0!"},{"$f":"K29-K30","v":0},{"$error":"#DIV/0!"}]

{"sheet":"Bilanz Monitor","index":6,"n_rows":56,"n_cols":21,"rows_kept":56,"cut":false,"hidden":false,"merged":[[55,1,55,4],[36,11,36,12],[3,5,3,12],[38,5,38,12],[3,1,3,4],[33,1,33,4],[30,2,30,4],[29,3,29,4],[28,3,28,4],[23,3,23,4],[11,3,11,4],[5,3,5,4],[31,2,31,4],[54,2,54,4],[53,2,53,4],[38,1,38,4],[1,9,1,10],[1,11,1,12],[36,1,37,4],[36,5,36,6],[36,7,36,8],[4,2,4,4],[18,3,18,4],[17,2,17,4],[6,3,6,4],[1,5,1,6],[1,7,1,8],[1,1,2,4],[32,2,32,4],[36,9,36,10],[39,2,39,4],[44,2,44,4],[48,2,48,4],[43,3,43,4],[42,3,42,4],[41,3,41,4],[40,3,40,4]]}
[]
[null,"Bilanz",null,null,null,{"$f":"'Bilanz Dateneingabe'!C4","v":2019},null,{"$f":"'Bilanz Dateneingabe'!D4","v":2020},null,{"$f":"'Bilanz Dateneingabe'!E4","v":2021},null,{"$f":"'Bilanz Dateneingabe'!F4","v":2022},null,null,null,null,null,2019,2020,2021,2022]
[null,null,null,null,null,"TEUR","%","TEUR","%","TEUR","%","TEUR","%",null,null,null,"Bilanz - Kennzahlen"]
[null,"Aktiva"]
[null,"A.",{"$f":"'Bilanz Dateneingabe'!B6","v":"Anlagevermögen (automatische Summe)"},null,null,{"$f":"SUM(F6:F12)","v":0},{"$f":"F5/F$34*100","v":{"$error":"#DIV/0!"}},{"$f":"SUM(H6:H12)","v":0},{"$f":"H5/H$34*100","v":{"$error":"#DIV/0!"}},{"$f":"SUM(J6:J12)","v":0},{"$f":"J5/J$34*100","v":{"$error":"#DIV/0!"}},{"$f":"SUM(L6:L12)","v":0},{"$f":"L5/L$34*100","v":{"$error":"#DIV/0!"}}]
[null,null,"I.",{"$f":"'Bilanz Dateneingabe'!B8","v":"Immaterielle Vermögensgegenstände (automatische Summe)"},null,{"$f":"'Bilanz Dateneingabe'!C8","v":0},{"$f":"F6/F$34*100","v":{"$error":"#DIV/0!"}},{"$f":"'Bilanz Dateneingabe'!D8","v":0},{"$error":"#DIV/0!"},{"$f":"'Bilanz Dateneingabe'!E8","v":0},{"$error":"#DIV/0!"},{"$f":"'Bilanz Dateneingabe'!F8","v":0},{"$error":"#DIV/0!"},null,null,null,"Anlagenintensität I",{"$f":"IF('Bilanz Dateneingabe'!C6=0,0,'Bilanz Dateneingabe'!C6/'Bilanz Dateneingabe'!C62)","v":0},{"$f":"IF('Bilanz Dateneingabe'!D6=0,0,'Bilanz Dateneingabe'!D6/'Bilanz Dateneingabe'!D62)","v":0},{"$f":"IF('Bilanz Dateneingabe'!E6=0,0,'Bilanz Dateneingabe'!E6/'Bilanz Dateneingabe'!E62)","v":0},{"$f":"IF('Bilanz Dateneingabe'!F6=0,0,'Bilanz Dateneingabe'!F6/'Bilanz Dateneingabe'!F62)","v":0}]
[null,null,"II.",{"$f":"'Bilanz Dateneingabe'!B14","v":"Sachanlagen (automatische Summe)"},null,{"$f":"'Bilanz Dateneingabe'!C14","v":0},{"$error":"#DIV/0!"},{"$f":"'Bilanz Dateneingabe'!D14","v":0},{"$error":"#DIV/0!"},{"$f":"'Bilanz Dateneingabe'!E14","v":0},{"$error":"#DIV/0!"},{"$f":"'Bilanz Dateneingabe'!F14","v":0},{"$error":"#DIV/0!"}]
[null,null,null,"1.",{"$f":"'Bilanz Dateneingabe'!B16","v":"Grundstücke, grundstücksgleiche Rechte & Bauten"},{"$f":"'Bilanz Dateneingabe'!C16","v":0},{"$error":"#DIV/0!"},{"$f":"'Bilanz Dateneingabe'!E16","v":0},{"$error":"#DIV/0!"},{"$f":"'Bilanz Dateneingabe'!G16","v":0},{"$error":"#DIV/0!"},{"$f":"'Bilanz Dateneingabe'!I16","v":0},{"$error":"#DIV/0!"}]
[null,null,null,"2.",{"$f":"'Bilanz Dateneingabe'!B17","v":"Technische Anlagen & Maschinen"},{"$f":"'Bilanz Dateneingabe'!C17","v":0},{"$error":"#DIV/0!"},{"$f":"'Bilanz Dateneingabe'!E17","v":0},{"$error":"#DIV/0!"},{"$f":"'Bilanz Dateneingabe'!G17","v":0},{"$error":"#DIV/0!"},{"$f":"'Bilanz Dateneingabe'!I17","v":0},{"$error":"#DIV/0!"}]
[null,null,null,"3.",{"$f":"'Bilanz Dateneingabe'!B18","v":"Andere Anlagen,  Betriebs- & Geschäftsausstattung"},{"$f":"'Bilanz Dateneingabe'!C18","v":0},{"$error":"#DIV/0!"},{"$f":"'Bilanz Dateneingabe'!E18","v":0},{"$error":"#DIV/0!"},{"$f":"'Bilanz Dateneingabe'!G18","v":0},{"$error":"#DIV/0!"},{"$f":"'Bilanz Dateneingabe'!I18","v":0},{"$error":"#DIV/0!"}]
[null,null,null,"4.",{"$f":"'Bilanz Dateneingabe'!B20","v":"Sonstige Sachanlagen"},{"$f":"SUM('Bilanz Dateneingabe'!C19,'Bilanz Dateneingabe'!C20)","v":0},{"$error":"#DIV/0!"},{"$f":"SUM('Bilanz Dateneingabe'!E19,'Bilanz Dateneingabe'!E20)","v":0},{"$error":"#DIV/0!"},{"$f":"SUM('Bilanz Dateneingabe'!G19,'Bilanz Dateneingabe'!G20)","v":0},{"$error":"#DIV/0!"},{"$f":"SUM('Bilanz Dateneingabe'!I19,'Bilanz Dateneingabe'!I20)","v":0},{"$error":"#DIV/0!"}]
[null,null,"III.",{"$f":"'Bilanz Dateneingabe'!B21","v":"Finanzanlagen (automatische Summe)"},null,{"$f":"'Bilanz Dateneingabe'!C21","v":0},{"$error":"#DIV/0!"},{"$f":"'Bilanz Dateneingabe'!D21","v":0},{"$error":"#DIV/0!"},{"$f":"'Bilanz Dateneingabe'!E21","v":0},{"$error":"#DIV/0!"},{"$f":"'Bilanz Dateneingabe'!F21","v":0},{"$error":"#DIV/0!"},null,null,null,"Betriebskapital in Euro",{"$f":"F18-F51","v":0},{"$f":"H18-H51","v":0},{"$f":"J18-J51","v":0},{"$f":"L18-L51","v":0}]
[null,null,null,"1.",{"$f":"'Bilanz Dateneingabe'!B23","v":"Anteile an verbundenen Unternehmen AV"},{"$f":"'Bilanz Dateneingabe'!C23","v":0},{"$error":"#DIV/0!"},{"$f":"'Bilanz Dateneingabe'!D23","v":0},{"$error":"#DIV/0!"},{"$f":"'Bilanz Dateneingabe'!E23","v":0},{"$error":"#DIV/0!"},{"$f":"'Bilanz Dateneingabe'!F23","v":0},{"$error":"#DIV/0!"}]
[null,null,null,"2.",{"$f":"'Bilanz Dateneingabe'!B24","v":"Ausleihungen an verbundene Unternehmen"},{"$f":"'Bilanz Dateneingabe'!C24","v":0},{"$error":"#DIV/0!"},{"$f":"'Bilanz Dateneingabe'!D24","v":0},{"$error":"#DIV/0!"},{"$f":"'Bilanz Dateneingabe'!E24","v":0},{"$error":"#DIV/0!"},{"$f":"'Bilanz Dateneingabe'!F24","v":0},{"$error":"#DIV/0!"}]
[null,null,null,"3.",{"$f":"'Bilanz Dateneingabe'!B25","v":"Beteiligungen"},{"$f":"SUM('Bilanz Dateneingabe'!C25,'Bilanz Dateneingabe'!C26)","v":0},{"$error":"#DIV/0!"},{"$f":"SUM('Bilanz Dateneingabe'!D25,'Bilanz Dateneingabe'!D26)","v":0},{"$error":"#DIV/0!"},{"$f":"SUM('Bilanz Dateneingabe'!E25,'Bilanz Dateneingabe'!E26)","v":0},{"$error":"#DIV/0!"},{"$f":"SUM('Bilanz Dateneingabe'!F25,'Bilanz Dateneingabe'!F26)","v":0},{"$error":"#DIV/0!"}]
[null,null,null,"4.",{"$f":"'Bilanz Dateneingabe'!B27","v":"Wertpapiere des Anlagevermögens"},{"$f":"'Bilanz Dateneingabe'!C27","v":0},{"$error":"#DIV/0!"},{"$f":"'Bilanz Dateneingabe'!D27","v":0},{"$error":"#DIV/0!"},{"$f":"'Bilanz Dateneingabe'!E27","v":0},{"$error":"#DIV/0!"},{"$f":"'Bilanz Dateneingabe'!F27","v":0},{"$error":"#DIV/0!"}]
[null,null,null,"5.",{"$f":"'Bilanz Dateneingabe'!B28","v":"Sonstige Ausleihungen"},{"$f":"SUM('Bilanz Dateneingabe'!C28,'Bilanz Dateneingabe'!C29)","v":0},{"$error":"#DIV/0!"},{"$f":"SUM('Bilanz Dateneingabe'!D28,'Bilanz Dateneingabe'!D29)","v":0},{"$error":"#DIV/0!"},{"$f":"SUM('Bilanz Dateneingabe'!E28,'Bilanz Dateneingabe'!E29)","v":0},{"$error":"#DIV/0!"},{"$f":"SUM('Bilanz Dateneingabe'!F28,'Bilanz Dateneingabe'!F29)","v":0},{"$error":"#DIV/0!"}]
[null,"B.",{"$f":"'Bilanz Dateneingabe'!B30","v":"Umlaufvermögen (automatische Summe)"},null,null,{"$f":"SUM(F19:F30)","v":0},{"$error":"#DIV/0!"},{"$f":"SUM(H19:H30)","v":0},{"$error":"#DIV/0!"},{"$f":"SUM(J19:J30)","v":0},{"$error":"#DIV/0!"},{"$f":"SUM(L19:L30)","v":0},{"$error":"#DIV/0!"}]
[null,null,"I.",{"$f":"'Bilanz Dateneingabe'!B32","v":"Vorräte (automatische Summe)"},null,{"$f":"'Bilanz Dateneingabe'!C32","v":0},{"$error":"#DIV/0!"},{"$f":"IF('Bilanz Dateneingabe'!D33=0,SUM('Bilanz Monitor'!H20:H23),'Bilanz Dateneingabe'!D33)","v":0},{"$error":"#DIV/0!"},{"$f":"IF('Bilanz Dateneingabe'!E33=0,SUM('Bilanz Monitor'!J20:J23),'Bilanz Dateneingabe'!E33)","v":0},{"$error":"#DIV/0!"},{"$f":"IF('Bilanz Dateneingabe'!F33=0,SUM('Bilanz Monitor'!L20:L23),'Bilanz Dateneingabe'!F33)","v":0},{"$error":"#DIV/0!"},null,null,null,"Eigenkapitalquote",{"$f":"(F40/F56)","v":{"$error":"#DIV/0!"}},{"$f":"(H40/H56)","v":{"$error":"#DIV/0!"}},{"$f":"(J40/J56)","v":{"$error":"#DIV/0!"}},{"$f":"L40/L56","v":{"$error":"#DIV/0!"}}]
[null,null,null,"1.",{"$f":"'Bilanz Dateneingabe'!B34","v":"Roh-, Hilfs- & Betriebsstoffe"},{"$f":"'Bilanz Dateneingabe'!C34","v":0},{"$error":"#DIV/0!"},{"$f":"'Bilanz Dateneingabe'!D34","v":0},{"$error":"#DIV/0!"},{"$f":"'Bilanz Dateneingabe'!E34","v":0},{"$error":"#DIV/0!"},{"$f":"'Bilanz Dateneingabe'!F34","v":0},{"$error":"#DIV/0!"}]
[null,null,null,"2.",{"$f":"'Bilanz Dateneingabe'!B35","v":"Unfertige Erzeugnisse, unfertige Leistungen"},{"$f":"'Bilanz Dateneingabe'!C35","v":0},{"$error":"#DIV/0!"},{"$f":"'Bilanz Dateneingabe'!D35","v":0},{"$error":"#DIV/0!"},{"$f":"'Bilanz Dateneingabe'!E35","v":0},{"$error":"#DIV/0!"},{"$f":"'Bilanz Dateneingabe'!F35","v":0},{"$error":"#DIV/0!"}]
[null,null,null,"3.",{"$f":"'Bilanz Dateneingabe'!B36","v":"Fertige Erzeugnisse & Waren"},{"$f":"'Bilanz Dateneingabe'!C36","v":0},{"$error":"#DIV/0!"},{"$f":"'Bilanz Dateneingabe'!D36","v":0},{"$error":"#DIV/0!"},{"$f":"'Bilanz Dateneingabe'!E36","v":0},{"$error":"#DIV/0!"},{"$f":"'Bilanz Dateneingabe'!F36","v":0},{"$error":"#DIV/0!"}]
[null,null,null,"4.",{"$f":"'Bilanz Dateneingabe'!B38","v":"Sonstige Vorräte"},{"$f":"SUM('Bilanz Dateneingabe'!C37,'Bilanz Dateneingabe'!C38)","v":0},{"$error":"#DIV/0!"},{"$f":"SUM('Bilanz Dateneingabe'!D37,'Bilanz Dateneingabe'!D38)","v":0},{"$error":"#DIV/0!"},{"$f":"SUM('Bilanz Dateneingabe'!E37,'Bilanz Dateneingabe'!E38)","v":0},{"$error":"#DIV/0!"},{"$f":"SUM('Bilanz Dateneingabe'!F37,'Bilanz Dateneingabe'!F38)","v":0},{"$error":"#DIV/0!"}]
[null,null,"II.",{"$f":"'Bilanz Dateneingabe'!B39","v":"Forderungen & sonstige Vermögensgegenstände (automatische Summe)"},null,{"$f":"'Bilanz Dateneingabe'!C39","v":0},{"$error":"#DIV/0!"},{"$f":"IF('Bilanz Dateneingabe'!D40=0,SUM('Bilanz Monitor'!H25:H28),'Bilanz Dateneingabe'!D40)","v":0},{"$error":"#DIV/0!"},{"$f":"IF('Bilanz Dateneingabe'!E40=0,SUM('Bilanz Monitor'!J25:J28),'Bilanz Dateneingabe'!E40)","v":0},{"$error":"#DIV/0!"},{"$f":"IF('Bilanz Dateneingabe'!F40=0,SUM('Bilanz Monitor'!L25:L28),'Bilanz Dateneingabe'!F40)","v":0},{"$error":"#DIV/0!"}]
[null,null,null,"1.",{"$f":"'Bilanz Dateneingabe'!B41","v":"Forderungen aus Lieferung & Leistung"},{"$f":"'Bilanz Dateneingabe'!C41","v":0},{"$error":"#DIV/0!"},{"$f":"'Bilanz Dateneingabe'!D41","v":0},{"$error":"#DIV/0!"},{"$f":"'Bilanz Dateneingabe'!E41","v":0},{"$error":"#DIV/0!"},{"$f":"'Bilanz Dateneingabe'!F41","v":0},{"$error":"#DIV/0!"}]
[null,null,null,"2.",{"$f":"'Bilanz Dateneingabe'!B42","v":"Forderungen gegenüber verbundenen Unternehmen"},{"$f":"'Bilanz Dateneingabe'!C42","v":0},{"$error":"#DIV/0!"},{"$f":"'Bilanz Dateneingabe'!D42","v":0},{"$error":"#DIV/0!"},{"$f":"'Bilanz Dateneingabe'!E42","v":0},{"$error":"#DIV/0!"},{"$f":"'Bilanz Dateneingabe'!F42","v":0},{"$error":"#DIV/0!"}]
[null,null,null,"3.",{"$f":"'Bilanz Dateneingabe'!B43","v":"Forderungen gegen Unternehmen, mit Beteiligungsverhältnis"},{"$f":"'Bilanz Dateneingabe'!C43","v":0},{"$error":"#DIV/0!"},{"$f":"'Bilanz Dateneingabe'!D43","v":0},{"$error":"#DIV/0!"},{"$f":"'Bilanz Dateneingabe'!E43","v":0},{"$error":"#DIV/0!"},{"$f":"'Bilanz Dateneingabe'!F43","v":0},{"$error":"#DIV/0!"}]
[null,null,null,"4.",{"$f":"'Bilanz Dateneingabe'!B45","v":"Sonstige Vermögensgegenstände"},{"$f":"SUM('Bilanz Dateneingabe'!C44,'Bilanz Dateneingabe'!C45,'Bilanz Dateneingabe'!C46)","v":0},{"$error":"#DIV/0!"},{"$f":"SUM('Bilanz Dateneingabe'!D44,'Bilanz Dateneingabe'!D45,'Bilanz Dateneingabe'!D46)","v":0},{"$error":"#DIV/0!"},{"$f":"SUM('Bilanz Dateneingabe'!E44,'Bilanz Dateneingabe'!E45,'Bilanz Dateneingabe'!E46)","v":0},{"$error":"#DIV/0!"},{"$f":"SUM('Bilanz Dateneingabe'!F44,'Bilanz Dateneingabe'!F45,'Bilanz Dateneingabe'!F46)","v":0},{"$error":"#DIV/0!"}]
[null,null,"III.",{"$f":"'Bilanz Dateneingabe'!B47","v":"Wertpapiere (automatische Summe)"},null,{"$f":"'Bilanz Dateneingabe'!C47","v":0},{"$error":"#DIV/0!"},{"$f":"'Bilanz Dateneingabe'!D47","v":0},{"$error":"#DIV/0!"},{"$f":"'Bilanz Dateneingabe'!E47","v":0},{"$error":"#DIV/0!"},{"$f":"'Bilanz Dateneingabe'!F47","v":0},{"$error":"#DIV/0!"},null,null,null,"Fremdkapitalquote",{"$f":"(F49/F56)","v":{"$error":"#DIV/0!"}},{"$f":"(H49/H56)","v":{"$error":"#DIV/0!"}},{"$f":"(J49/J56)","v":{"$error":"#DIV/0!"}},{"$f":"(L49/L56)","v":{"$error":"#DIV/0!"}}]
[null,null,"IV.",{"$f":"'Bilanz Dateneingabe'!B53","v":"Kassenbestand/Guthaben bei Kreditinstituten (automatische Summe)"},null,{"$f":"'Bilanz Dateneingabe'!C53","v":0},{"$error":"#DIV/0!"},{"$f":"'Bilanz Dateneingabe'!D53","v":0},{"$error":"#DIV/0!"},{"$f":"'Bilanz Dateneingabe'!E53","v":0},{"$error":"#DIV/0!"},{"$f":"'Bilanz Dateneingabe'!F53","v":0},{"$error":"#DIV/0!"}]
[null,"C.",{"$f":"'Bilanz Dateneingabe'!B58","v":"Aktiver Rechnungsabgrenzungsposten"},null,null,{"$f":"'Bilanz Dateneingabe'!C58","v":0},{"$error":"#DIV/0!"},{"$f":"'Bilanz Dateneingabe'!D58","v":0},{"$error":"#DIV/0!"},{"$f":"'Bilanz Dateneingabe'!E58","v":0},{"$error":"#DIV/0!"},{"$f":"'Bilanz Dateneingabe'!F58","v":0},{"$error":"#DIV/0!"}]
[null,"D.",{"$f":"'Bilanz Dateneingabe'!B59","v":"Aktive latente Steuern"},null,null,{"$f":"'Bilanz Dateneingabe'!C59","v":0},{"$error":"#DIV/0!"},{"$f":"'Bilanz Dateneingabe'!D59","v":0},{"$error":"#DIV/0!"},{"$f":"'Bilanz Dateneingabe'!E59","v":0},{"$error":"#DIV/0!"},{"$f":"'Bilanz Dateneingabe'!F59","v":0},{"$error":"#DIV/0!"}]
[null,"E.",{"$f":"'Bilanz Dateneingabe'!B60","v":"Nicht durch Eigenkapital gedeckter Verlustanteil"},null,null,{"$f":"'Bilanz Dateneingabe'!C60","v":0},{"$error":"#DIV/0!"},{"$f":"'Bilanz Dateneingabe'!D60","v":0},{"$error":"#DIV/0!"},{"$f":"'Bilanz Dateneingabe'!E60","v":0},{"$error":"#DIV/0!"},{"$f":"'Bilanz Dateneingabe'!F60","v":0},{"$error":"#DIV/0!"}]
[null,"Bilanzsumme",null,null,null,{"$f":"F5+F18+F31+F32+F33","v":0},{"$error":"#DIV/0!"},{"$f":"SUM(H5,H18,H31,H32,H33)","v":0},{"$error":"#DIV/0!"},{"$f":"SUM(J5,J18,J31,J32,J33)","v":0},{"$error":"#DIV/0!"},{"$f":"SUM(L5,L18,L31,L32,L33)","v":0},{"$error":"#DIV/0!"}]
[]
[]
[null,null,null,null,null,{"$f":"'Bilanz Dateneingabe'!C4","v":2019},null,{"$f":"'Bilanz Dateneingabe'!D4","v":2020},null,{"$f":"'Bilanz Dateneingabe'!E4","v":2021},null,{"$f":"'Bilanz Dateneingabe'!F4","v":2022}]
[null,null,null,null,null,"TEUR","%","TEUR","%","TEUR","%","TEUR","%"]
[null,"Passiva"]
[null,"A.",{"$f":"'Bilanz Dateneingabe'!B65","v":"Eigenkapital (automatische Summe)"},null,null,{"$f":"SUM(F41:F44)","v":0},{"$f":"F40/F$56*100","v":{"$error":"#DIV/0!"}},{"$f":"SUM(H41:H44)","v":0},{"$f":"H40/H$56*100","v":{"$error":"#DIV/0!"}},{"$f":"SUM(J41:J44)","v":0},{"$f":"J40/J$56*100","v":{"$error":"#DIV/0!"}},{"$f":"SUM(L41:L44)","v":0},{"$f":"L40/L$56*100","v":{"$error":"#DIV/0!"}}]
[null,null,"I.",{"$f":"'Bilanz Dateneingabe'!B67","v":"Gezeichnetes Kapital"},null,{"$f":"'Bilanz Dateneingabe'!C67","v":0},{"$error":"#DIV/0!"},{"$f":"'Bilanz Dateneingabe'!D67","v":0},{"$error":"#DIV/0!"},{"$f":"'Bilanz Dateneingabe'!E67","v":0},{"$error":"#DIV/0!"},{"$f":"'Bilanz Dateneingabe'!F67","v":0},{"$error":"#DIV/0!"}]
[null,null,"II.",{"$f":"'Bilanz Dateneingabe'!B76","v":"Gewinnvortrag/Verlustvortrag"},null,{"$f":"'Bilanz Dateneingabe'!C76","v":0},{"$error":"#DIV/0!"},{"$f":"'Bilanz Dateneingabe'!D76","v":0},{"$error":"#DIV/0!"},{"$f":"'Bilanz Dateneingabe'!E76","v":0},{"$error":"#DIV/0!"},{"$f":"'Bilanz Dateneingabe'!F76","v":0},{"$error":"#DIV/0!"}]
[null,null,"III.",{"$f":"'Bilanz Dateneingabe'!B77","v":"Jahresüberschuss/Jahresfehlbetrag"},null,{"$f":"'Bilanz Dateneingabe'!C77","v":0},{"$error":"#DIV/0!"},{"$f":"'Bilanz Dateneingabe'!D77","v":0},{"$error":"#DIV/0!"},{"$f":"'Bilanz Dateneingabe'!E77","v":0},{"$error":"#DIV/0!"},{"$f":"'Bilanz Dateneingabe'!F77","v":0},{"$error":"#DIV/0!"}]
[null,null,"IV.",{"$f":"'Bilanz Dateneingabe'!B68","v":"Gewinnrücklagen (automatische Summe)"},null,{"$f":"'Bilanz Dateneingabe'!C78","v":0},{"$error":"#DIV/0!"},{"$f":"'Bilanz Dateneingabe'!D78","v":0},{"$error":"#DIV/0!"},{"$f":"'Bilanz Dateneingabe'!E78","v":0},{"$error":"#DIV/0!"},{"$f":"'Bilanz Dateneingabe'!F78","v":0},{"$error":"#DIV/0!"}]
[null,"B.",{"$f":"'Bilanz Dateneingabe'!B79","v":"Rückstellungen (automatische Summe)"},null,null,{"$f":"'Bilanz Dateneingabe'!C79","v":0},{"$error":"#DIV/0!"},{"$f":"'Bilanz Dateneingabe'!D79","v":0},{"$error":"#DIV/0!"},{"$f":"'Bilanz Dateneingabe'!E79","v":0},{"$error":"#DIV/0!"},{"$f":"'Bilanz Dateneingabe'!F79","v":0},{"$error":"#DIV/0!"}]
[null,null,null,"1.",{"$f":"'Bilanz Dateneingabe'!B81","v":"Rückstellungen für Pensionen & ähnliche Verpflichtungen"},{"$f":"'Bilanz Dateneingabe'!C81","v":0},{"$error":"#DIV/0!"},{"$f":"'Bilanz Dateneingabe'!E81","v":0},{"$error":"#DIV/0!"},{"$f":"'Bilanz Dateneingabe'!G81","v":0},{"$error":"#DIV/0!"},{"$f":"'Bilanz Dateneingabe'!I81","v":0},{"$error":"#DIV/0!"}]
[null,null,null,"2.",{"$f":"'Bilanz Dateneingabe'!B82","v":"Steuerrückstellungen"},{"$f":"'Bilanz Dateneingabe'!C82","v":0},{"$error":"#DIV/0!"},{"$f":"'Bilanz Dateneingabe'!E82","v":0},{"$error":"#DIV/0!"},{"$f":"'Bilanz Dateneingabe'!G82","v":0},{"$error":"#DIV/0!"},{"$f":"'Bilanz Dateneingabe'!I82","v":0},{"$error":"#DIV/0!"}]
[null,null,null,"3.",{"$f":"'Bilanz Dateneingabe'!B83","v":"Sonstige Rückstellungen"},{"$f":"SUM('Bilanz Dateneingabe'!C83,'Bilanz Dateneingabe'!C84)","v":0},{"$error":"#DIV/0!"},{"$f":"SUM('Bilanz Dateneingabe'!E83,'Bilanz Dateneingabe'!E84)","v":0},{"$error":"#DIV/0!"},{"$f":"SUM('Bilanz Dateneingabe'!G83,'Bilanz Dateneingabe'!G84)","v":0},{"$error":"#DIV/0!"},{"$f":"SUM('Bilanz Dateneingabe'!I83,'Bilanz Dateneingabe'!I84)","v":0},{"$error":"#DIV/0!"}]
[null,"C.",{"$f":"'Bilanz Dateneingabe'!B85","v":"Verbindlichkeiten (automatische Summe)"},null,null,{"$f":"'Bilanz Dateneingabe'!C85","v":0},{"$error":"#DIV/0!"},{"$f":"'Bilanz Dateneingabe'!D85","v":0},{"$error":"#DIV/0!"},{"$f":"'Bilanz Dateneingabe'!E85","v":0},{"$error":"#DIV/0!"},{"$f":"'Bilanz Dateneingabe'!F85","v":0},{"$error":"#DIV/0!"}]
[null,null,null,"1.",{"$f":"'Bilanz Dateneingabe'!B90","v":"Verbindlichkeiten ggü. Kreditinstitut (KI)"},{"$f":"SUM('Bilanz Dateneingabe'!C87,'Bilanz Dateneingabe'!C90)","v":0},{"$error":"#DIV/0!"},{"$f":"SUM('Bilanz Dateneingabe'!E87,'Bilanz Dateneingabe'!E90)","v":0},{"$error":"#DIV/0!"},{"$f":"SUM('Bilanz Dateneingabe'!G87,'Bilanz Dateneingabe'!G90)","v":0},{"$error":"#DIV/0!"},{"$f":"SUM('Bilanz Dateneingabe'!I87,'Bilanz Dateneingabe'!I90)","v":0},{"$error":"#DIV/0!"}]
[null,null,null,"2.",{"$f":"'Bilanz Dateneingabe'!B92","v":"Verbindlichkeiten aus Lieferung und Leistung"},{"$f":"SUM('Bilanz Dateneingabe'!C91,'Bilanz Dateneingabe'!C92,'Bilanz Dateneingabe'!C93)","v":0},{"$error":"#DIV/0!"},{"$f":"SUM('Bilanz Dateneingabe'!E91,'Bilanz Dateneingabe'!E92,'Bilanz Dateneingabe'!E93)","v":0},{"$error":"#DIV/0!"},{"$f":"SUM('Bilanz Dateneingabe'!G91,'Bilanz Dateneingabe'!G92,'Bilanz Dateneingabe'!G93)","v":0},{"$error":"#DIV/0!"},{"$f":"SUM('Bilanz Dateneingabe'!I91,'Bilanz Dateneingabe'!I92,'Bilanz Dateneingabe'!I93)","v":0},{"$error":"#DIV/0!"}]
[null,null,null,"3.",{"$f":"'Bilanz Dateneingabe'!B94","v":"Verbindlichkeiten ggü.verbundenen Unternehmen"},{"$f":"SUM('Bilanz Dateneingabe'!C88,'Bilanz Dateneingabe'!C94,'Bilanz Dateneingabe'!C95)","v":0},{"$error":"#DIV/0!"},{"$f":"SUM('Bilanz Dateneingabe'!E88,'Bilanz Dateneingabe'!E94,'Bilanz Dateneingabe'!E95)","v":0},{"$error":"#DIV/0!"},{"$f":"SUM('Bilanz Dateneingabe'!G88,'Bilanz Dateneingabe'!G94,'Bilanz Dateneingabe'!G95)","v":0},{"$error":"#DIV/0!"},{"$f":"SUM('Bilanz Dateneingabe'!I88,'Bilanz Dateneingabe'!I94,'Bilanz Dateneingabe'!I95)","v":0},{"$error":"#DIV/0!"}]
[null,null,null,"4.",{"$f":"'Bilanz Dateneingabe'!B96","v":"Sonstige Verbindlichkeiten"},{"$f":"SUM('Bilanz Dateneingabe'!C89,'Bilanz Dateneingabe'!C96,'Bilanz Dateneingabe'!C97,'Bilanz Dateneingabe'!C98)","v":0},{"$error":"#DIV/0!"},{"$f":"SUM('Bilanz Dateneingabe'!E89,'Bilanz Dateneingabe'!E96,'Bilanz Dateneingabe'!E97,'Bilanz Dateneingabe'!E98)","v":0},{"$error":"#DIV/0!"},{"$f":"SUM('Bilanz Dateneingabe'!G89,'Bilanz Dateneingabe'!G96,'Bilanz Dateneingabe'!G97,'Bilanz Dateneingabe'!G98)","v":0},{"$error":"#DIV/0!"},{"$f":"SUM('Bilanz Dateneingabe'!I89,'Bilanz Dateneingabe'!I96,'Bilanz Dateneingabe'!I97,'Bilanz Dateneingabe'!I98)","v":0},{"$error":"#DIV/0!"}]
[null,"D.",{"$f":"'Bilanz Dateneingabe'!B99","v":"Passiver Rechnungsabgrenzungsposten "},null,null,{"$f":"'Bilanz Dateneingabe'!C99","v":0},{"$error":"#DIV/0!"},{"$f":"'Bilanz Dateneingabe'!D99","v":0},{"$error":"#DIV/0!"},{"$f":"'Bilanz Dateneingabe'!E99","v":0},{"$error":"#DIV/0!"},{"$f":"'Bilanz Dateneingabe'!F99","v":0},{"$error":"#DIV/0!"}]
[null,"E.",{"$f":"'Bilanz Dateneingabe'!B100","v":"Passive latente Steuern "},null,null,{"$f":"'Bilanz Dateneingabe'!C100","v":0},{"$error":"#DIV/0!"},{"$f":"'Bilanz Dateneingabe'!D100","v":0},{"$error":"#DIV/0!"},{"$f":"'Bilanz Dateneingabe'!E100","v":0},{"$error":"#DIV/0!"},{"$f":"'Bilanz Dateneingabe'!F100","v":0},{"$error":"#DIV/0!"}]
[null,"Bilanzsumme",null,null,null,{"$f":"F40+F45+F49","v":0},{"$error":"#DIV/0!"},{"$f":"SUM(H40,H45,H49,H54,H55)","v":0},{"$error":"#DIV/0!"},{"$f":"SUM(J40,J45,J49,J54,J55)","v":0},{"$error":"#DIV/0!"},{"$f":"SUM(L40,L45,L49,L54,L55)","v":0},{"$error":"#DIV/0!"}]

{"sheet":"-->","index":7,"n_rows":0,"n_cols":0,"rows_kept":0,"cut":false,"hidden":false,"merged":[]}

{"sheet":"Erläuterung Kennzahlen","index":8,"n_rows":27,"n_cols":3,"rows_kept":27,"cut":false,"hidden":false,"merged":[[1,1,2,2]]}
[]
[null,"GuV - Kennzahlen: Erläuterungen"]
[]
[]
[null,"Umsatzrendite","Dies Kennzahl beschreibt den Gewinnanteil vor Steuern am Umsatz. Zudem sollten die Schwankungen der AfA-Positionen, der sonst. betrieblichen Erträge und der sonstigen betrieblichen Aufwände im Mehrjahresvergleich des EBT geprüft werden, da diese in Krisensituationen stärker ausgeprägt sein können. Das Unternehmen sollte regemäßig prüfen, ob die Umsatzrendite im Branchenvergleich angemessen ist. Bei Umsatzrenditen von unter 5% sollte darüber hinaus ein enges Monitoring erfolgen."]
[]
[null,"Gesamtleistung in T€","Die Gesamtleistung gibt an, was die Gesellschaft im operativen Geschäft an Leistung erbracht hat. "]
[]
[null,"Materialquote","Die Materialquote gibt Auskunft über die Produktivität bzw. Effizienz im Unternehmen. Weist zum Beispiel von zwei ansonsten vergleichbaren Unternehmen das eine Unternehmen 60% Materialquote aus, hingegen das andere Unternehmen 40% Materialquote, bedeutet dies dass das eingekaufte Material zu höheren Preisen verkauft wird oder das Material zu geringeren Einkaufspreisen bezogen wurde. "]
[]
[null,"Personalintensität I","Die Personalintensität zeigt den Fixkostenanteil am Personalkostenblock. Eine hohe Personalintensität kann in einer Krisensituation das Unternehmen lähmen. Während zum Beispiel Materialkosten bei sinkenden Umsätzen schnell abgebaut werden können, sind die Gehälter weiter zu zahlen. Die Flexibilität könnte aber z.B. durch variable Arbeitszeitkonten gewährleistet werden. "]
[]
[null,"EBITDA-Marge","Dies Kennzahl gibt Auskunft über die operative Ertragskraft im Verhältnis zum Umsatz. Je Höher die EBITDA Marge ist, desto niedriger ist die Ausfallwahrscheinlichkeit. Eine hohe Marge stellt eine Pufferwirkung bei Umsatz-, Material- und Personalschankungen dar."]
[]
[null,"EBT-Marge","Die EBT Marge gibt die Rentabilität des Umsatzes an. Sie bezeichnet den Gewinn, der in einem Unternehmen vor Abzug der Ertragssteuern erzielt wird. Mit ihrer Hilfe ist es möglich die Ertragskraft einer Gesellschaft im Hinblick auf internationale Wettbewerber einzuschätzen. "]
[]
[null,"Bilanz - Kennzahlen: Erläuterungen "]
[]
[]
[null,"Anlagenintensität I","Eine hohe Anlagenintensität beinhaltet ein höheres Risiko, da das Unternehmen bei Marktveränderung i.d.R. nicht so schnell reagieren kann. Es könnte zu viel Kapital im Anlagevermögen langfristig gebunden sein. Damit verliert das Unternehmen an Flexibilität, um sich an neue Marktbedingungen, die evtl. andere Anlagegüter erfordern, anzupassen."]
[]
[null,"Betriebskapital in Euro","Diese Kennzahl, auch Working Capital genannt, gibt einen Hinweis auf die kurzfristige Entwicklung der Zahlungsfähigkeit eines Unternehmens und steht ganz besonders im Interesse von Fremdkapitalgebern. Ein negatives Betriebskapital deutet auf eine angespannt Liquiditätssituation hin. "]
[]
[]
[null,"Eigenkapitalquote","Diese Kennzahl gibt an wie hoch das Eigenkapital im Verhältnis zum Gesamtkapital (FK+EK) ist. Umso höher diese Kennzahl desto höher ist die finanzielle Stabilität des Unternehmens und die Unabhängigkeit gegenüber Fremdkapitalgebern. Dies hat Einfluss auf die Bonitätseinstufung des Unternehmens."]
[]
[null,"Fremdkapitalquote","Die Fremdkapitalquote zeigt den Anteil des Fremdkapitals am Gesamtkapital. Sie ist Indikator für die Beurteilung des Kapitalrisikos. Bei steigendem Fremdkapital kann die Neuaufnahme von Krediten schwieriger werden. Der Zielwert ist stark Branchenabhängig. Als Orientierungswert gilt <67%."]